bitfinex/quotes_ETHUSD_20250505
["timestamp","ask_amount","ask_price","bid_price","bid_amount"]
[1746408580695,5.52455665,1810.1,1810.0,0.10828292]
[1746408580895,5.52497614,1810.0,1809.8,6.155]
[1746408581730,6.89734765,1810.1,1809.8,6.155]
[1746408581903,5.52516713,1809.9,1809.8,6.155]
[1746408582312,7.4429913,1809.9,1809.8,0.005]
[1746408582939,1.61636275,1809.9,1809.8,0.005]
[1746408583109,0.51133858,1809.9,1809.8,0.005]
[1746408583293,6.44453582,1809.9,1809.8,0.005]
[1746408583497,7.22933582,1809.9,1809.8,0.005]
[1746408584397,7.22933582,1809.9,1809.8,0.11667818]
[1746408585530,10.77933582,1809.9,1809.8,0.11667818]
[1746408585834,12.57471285,1809.9,1809.8,0.005]
[1746408586022,12.57471285,1809.9,1809.8,0.11258358]
[1746408586420,12.02471285,1809.9,1809.8,0.11258358]
[1746408587649,9.57471285,1809.9,1809.8,0.11258358]
[1746408588143,9.02471285,1809.9,1809.8,0.11258358]
[1746408590247,9.02471285,1809.9,1809.8,0.005]
[1746408592651,6.44453582,1809.9,1809.8,0.005]
[1746408593249,0.91936869,1809.9,1809.8,0.005]
[1746408593557,5.93319724,1809.9,1809.8,0.005]
[1746408593854,0.40803011,1809.9,1809.8,0.005]
[1746408594056,5.52516713,1809.9,1809.8,0.005]
[1746408594354,6.03526489,1809.9,1809.8,0.005]
[1746408594560,7.14028378,1809.9,1809.8,0.005]
[1746408595059,6.44250489,1809.9,1809.8,0.005]
[1746408595464,9.41054127,1809.9,1809.8,0.005]
[1746408595763,7.21120489,1809.9,1809.8,0.005]
[1746408600098,10.21120489,1809.9,1809.8,0.005]
[1746408601004,9.31947775,1809.7,1809.6,0.4120159]
[1746408601156,9.31947775,1809.7,1809.5,0.005]
[1746408601157,6.31978311,1809.6,1809.5,0.005]
[1746408601474,6.03618087,1809.6,1809.5,0.005]
[1746408604185,0.51009776,1809.6,1809.5,6.155]
[1746408604387,0.51009776,1809.6,1809.5,6.9663]
[1746408604581,11.05130916,1809.8,1809.5,6.9663]
[1746408604889,6.67143681,1809.8,1809.5,6.9663]
[1746408605486,6.6715221,1809.8,1809.5,6.9663]
[1746408605686,0.51106887,1809.7,1809.5,6.9663]
[1746408605993,0.51106887,1809.7,1809.6,12.49348311]
[1746408606192,5.52467937,1810.1,1809.6,6.9674]
[1746408606193,11.04951718,1810.1,1809.6,6.9674]
[1746408606357,0.55246794,1810.0,1809.6,6.9674]
[1746408606562,5.52577775,1809.7,1809.6,6.15]
[1746408607211,9.03689922,1809.7,1809.6,6.15]
[1746408607375,5.52608311,1809.6,1809.5,0.005]
[1746408607578,9.35188311,1809.6,1809.5,0.005]
[1746408607825,9.86300458,1809.6,1809.5,0.005]
[1746408608116,11.40188281,1809.6,1809.5,0.005]
[1746408609201,0.51112147,1809.6,1809.5,0.005]
[1746408609497,0.51112147,1809.6,1809.5,0.8156]
[1746408609864,5.52590303,1809.7,1809.5,0.8156]
[1746408610079,11.05196772,1809.7,1809.5,0.8156]
[1746408610298,5.52608311,1809.6,1809.5,0.005]
[1746408610801,6.03776509,1809.6,1809.5,0.005]
[1746408611287,7.2743719,1809.6,1809.5,0.005]
[1746408613710,1.74828879,1809.6,1809.5,0.005]
[1746408613883,0.51168198,1809.6,1809.5,0.005]
[1746408614405,5.52570453,1809.8,1809.5,0.005]
[1746408614602,5.52570453,1809.8,1809.7,1.65130418]
[1746408614767,6.03761447,1809.8,1809.7,1.65130418]
[1746408616675,6.0375709,1809.8,1809.5,1.65630418]
[1746408616879,0.51190994,1809.7,1809.5,1.65630418]
[1746408617625,5.52566096,1809.8,1809.5,2.45338363]
[1746408618217,4.816,1810.1,1809.8,0.7687]
[1746408618413,5.52443699,1810.2,1810.0,1.65130418]
[1746408618783,6.03594568,1810.1,1810.0,1.65130418]
[1746408618984,0.51138903,1810.1,1810.0,1.65130418]
[1746408619189,6.03594568,1810.1,1810.0,1.65130418]
[1746408619399,0.51138903,1810.1,1810.0,1.65130418]
[1746408619798,0.51138903,1810.1,1810.0,0.7686]
[1746408619998,0.51138903,1810.1,1810.0,1.70339043]
[1746408620378,5.52396911,1810.3,1810.0,1.70339043]
[1746408620573,5.52396911,1810.3,1810.0,0.7686]
[1746408620779,0.51111671,1810.2,1810.1,3.05416976]
[1746408621081,6.03536817,1810.2,1810.1,3.05416976]
[1746408621283,5.52455665,1810.1,1810.0,0.7686]
[1746408621483,6.03551108,1810.2,1810.0,0.7686]
[1746408621717,5.52455665,1810.1,1810.0,0.7686]
[1746408621891,6.03551108,1810.2,1810.0,0.7686]
[1746408621892,5.52440936,1810.2,1810.0,0.7686]
[1746408622278,5.52516713,1809.9,1809.8,0.7981]
[1746408622601,5.52516713,1809.9,1809.5,0.005]
[1746408622602,5.52608311,1809.6,1809.5,0.005]
[1746408622994,6.84394213,1809.6,1809.5,0.005]
[1746408623194,8.08091412,1809.6,1809.5,0.005]
[1746408624323,6.03674213,1809.6,1809.5,0.005]
[1746408625930,6.84024213,1809.6,1809.5,0.005]
[1746408629605,5.52730488,1809.2,1809.1,2.79721821]
[1746408630119,6.0379639,1809.2,1809.1,2.79721821]
[1746408630505,6.0379639,1809.2,1809.1,2.90198942]
[1746408630704,7.19447148,1809.2,1809.1,2.90198942]
[1746408630941,6.0379639,1809.2,1809.1,2.90198942]
[1746408632003,5.52730488,1809.2,1809.1,2.90198942]
[1746408632212,5.52685333,1809.4,1809.1,5.95615918]
[1746408633440,5.52685333,1809.4,1809.2,0.8193]
[1746408633638,5.52656297,1809.5,1809.3,3.05416976]
[1746408633948,3.69308663,1809.8,1809.4,6.34590277]
[1746408634120,9.21867702,1809.8,1809.5,3.05416976]
[1746408634314,6.0365426,1809.7,1809.5,3.1606376]
[1746408634522,5.52608311,1809.6,1809.5,0.10646784]
[1746408636130,6.03683246,1809.6,1809.5,0.10646784]
[1746408636437,7.19309353,1809.6,1809.5,0.10646784]
[1746408636820,5.52669393,1809.4,1809.3,2.75401138]
[1746408637542,5.52669393,1809.4,1809.2,2.75626009]
[1746408637907,0.51068288,1809.3,1809.2,2.75626009]
[1746408638240,6.03768227,1809.3,1809.2,2.75626009]
[1746408642658,5.52730488,1809.2,1809.1,2.79721821]
[1746408643066,5.52730488,1809.2,1809.1,0.005]
[1746408643273,6.03798776,1809.2,1809.1,0.005]
[1746408645479,6.03798776,1809.2,1809.1,0.11202179]
[1746408646542,5.52761041,1809.1,1809.0,2.97996836]
[1746408646741,7.27641311,1809.1,1809.0,0.25870248]
[1746408647457,7.27641311,1809.1,1809.0,2.97996836]
[1746408647657,6.03829329,1809.1,1809.0,0.25870248]
[1746408648282,5.52761041,1809.1,1809.0,0.25870248]
[1746408649492,6.0380183,1809.1,1809.0,0.25870248]
[1746408654904,6.0380183,1809.1,1808.7,2.72205547]
[1746408654905,0.769,1808.8,1808.7,2.72205547]
[1746408655114,5.81956154,1808.2,1808.1,2.77747982]
[1746408655291,8.53066755,1808.1,1808.0,2.80422465]
[1746408655521,5.53280956,1807.4,1807.3,2.70428271]
[1746408655691,5.53280956,1807.4,1805.9,0.4120159]
[1746408655692,29.41782988,1807.4,1805.9,0.4120159]
[1746408655892,3.0,1805.9,1804.3,17.11450649]
[1746408656132,0.2,1804.5,1802.7,9.40082645]
[1746408656317,22.58148193,1805.8,1802.7,9.40082645]
[1746408656318,5.546927,1802.8,1802.7,9.40082645]
[1746408656519,18.39004438,1802.8,1801.2,2.78700458]
[1746408656727,5.55031359,1801.7,1801.6,5.10936398]
[1746408656897,5.55031359,1801.7,1801.6,16.88422]
[1746408656898,0.09403991,1801.7,1801.6,16.88422]
[1746408657094,5.5487561,1802.3,1801.1,11.11318761]
[1746408657294,5.55008849,1801.8,1801.2,5.96]
[1746408657527,5.54892314,1802.2,1801.3,5.96]
[1746408657736,0.5024477,1802.8,1801.4,1.4001]
[1746408658038,0.5024477,1802.8,1801.5,14.5]
[1746408658039,0.7685,1802.5,1801.5,14.5]
[1746408658246,0.64624604,1802.5,1801.1,13.88305068]
[1746408658543,0.99629265,1802.4,1801.3,0.10299066]
[1746408658832,0.64624604,1802.5,1801.0,2.74263236]
[1746408658833,5.54877372,1802.2,1801.0,2.74263236]
[1746408658996,0.81671484,1802.1,1800.2,2.79540967]
[1746408659188,1.56627734,1802.1,1800.4,2.73803457]
[1746408659493,0.78816085,1802.0,1800.5,2.85276151]
[1746408659698,0.05549663,1801.9,1800.9,0.2]
[1746408660008,0.05549663,1801.9,1800.6,5.55346114]
[1746408660215,0.8233,1801.8,1800.1,2.77871278]
[1746408660394,0.49042564,1801.7,1800.9,3.25265307]
[1746408660733,0.05549663,1801.6,1801.2,14.5]
[1746408660892,26.3693619,1801.9,1801.3,0.19633584]
[1746408661100,0.06025747,1801.8,1801.4,5.55098373]
[1746408661288,25.23630338,1801.9,1801.5,3.0]
[1746408661491,7.62413119,1801.8,1801.7,6.25265307]
[1746408661760,7.62413119,1801.8,1801.7,18.14487659]
[1746408661936,7.62413119,1801.8,1801.7,17.5]
[1746408662231,25.23630338,1801.9,1801.8,8.55000555]
[1746408662232,19.6172827,1801.9,1801.8,8.55000555]
[1746408662442,19.19581764,1801.9,1801.8,8.55000555]
[1746408662607,14.73832861,1801.9,1801.8,8.74277392]
[1746408662810,0.7942,1803.5,1802.0,3.0]
[1746408663038,0.7942,1804.0,1802.9,3.24971357]
[1746408663240,0.7942,1804.0,1802.4,0.8202]
[1746408663416,5.54541884,1803.3,1802.4,0.8202]
[1746408663735,0.55454188,1803.3,1802.5,0.16623678]
[1746408663934,0.7942,1804.0,1802.6,14.5]
[1746408664124,5.54538064,1803.4,1802.7,0.16356694]
[1746408664523,0.7942,1804.0,1802.6,4.77262765]
[1746408664711,22.13348405,1803.4,1802.7,0.1634928]
[1746408664909,22.13348405,1803.4,1802.7,0.66265235]
[1746408665114,22.13348405,1803.4,1802.7,0.1634928]
[1746408665339,22.13348405,1803.4,1802.2,10.195]
[1746408665537,22.13348405,1803.4,1803.2,3.0]
[1746408665740,22.13348405,1803.4,1803.3,14.5]
[1746408665912,22.13348405,1803.4,1803.3,17.6429661]
[1746408666121,0.7586,1804.5,1803.3,17.6429661]
[1746408666122,5.54410177,1803.8,1803.3,14.6429661]
[1746408666348,5.5442172,1803.7,1803.0,5.85122673]
[1746408666557,5.54415922,1803.7,1802.8,0.8327]
[1746408666715,5.5460041,1803.1,1802.2,10.195]
[1746408666915,5.54603381,1803.1,1802.2,10.195]
[1746408667116,5.54537644,1803.4,1802.2,10.195]
[1746408667458,5.54517625,1803.4,1802.4,5.54814739]
[1746408667750,5.54508151,1803.4,1802.3,5.54828656]
[1746408668063,5.54651788,1803.0,1802.4,0.55482866]
[1746408668220,5.5458891,1803.2,1802.6,3.0]
[1746408668414,6.30310875,1803.6,1802.6,3.0]
[1746408668415,5.54477405,1803.5,1802.6,3.0]
[1746408668616,10.195,1804.0,1803.0,5.54602992]
[1746408668857,10.198,1804.6,1803.2,5.54569653]
[1746408669062,5.54244776,1804.3,1803.5,3.0]
[1746408669230,5.54202953,1804.4,1803.5,8.54460023]
[1746408669427,11.0284,1804.6,1803.4,3.0]
[1746408669626,5.54333773,1804.0,1803.1,0.7719]
[1746408669845,5.54333773,1804.0,1803.2,3.0]
[1746408670045,5.54298212,1804.1,1803.6,14.5]
[1746408670046,22.13348405,1803.7,1803.6,14.5]
[1746408671013,27.67764327,1803.7,1803.6,14.5]
[1746408671249,5.54471371,1803.6,1802.9,10.198]
[1746408671426,27.67764327,1803.7,1802.9,10.198]
[1746408671627,5.54448005,1803.6,1803.0,1.0198]
[1746408671830,22.13348405,1803.7,1803.1,14.5]
[1746408672338,5.54499237,1803.5,1803.1,14.5]
[1746408672540,5.54456481,1803.6,1803.1,14.5]
[1746408672859,5.54557546,1803.3,1803.1,14.5]
[1746408673153,5.54548658,1803.3,1803.1,14.5]
[1746408673453,28.46137,1803.7,1803.1,14.5]
[1746408673653,22.13348405,1803.7,1803.1,20.0457277]
[1746408673953,22.13348405,1803.7,1803.1,14.5]
[1746408674131,5.54475735,1803.6,1803.1,14.5]
[1746408674314,22.13348405,1803.2,1803.0,5.54630778]
[1746408674514,22.13348405,1803.2,1803.1,5.5460041]
[1746408675122,22.13348405,1803.2,1803.1,6.0960041]
[1746408675424,22.13348405,1803.5,1803.1,20.5960041]
[1746408675627,22.13348405,1803.5,1803.2,5.54553294]
[1746408675837,22.13348405,1803.5,1803.1,0.46341379]
[1746408676038,22.13348405,1803.5,1803.4,5.54508151]
[1746408676355,22.13348405,1803.5,1803.4,23.82858151]
[1746408676859,5.54157413,1804.6,1803.8,3.0]
[1746408677061,26.63638805,1804.8,1804.1,5.54279856]
[1746408677362,21.09548952,1804.8,1803.9,8.54354017]
[1746408677658,26.63645979,1804.8,1804.2,20.04244344]
[1746408677954,21.09548952,1804.8,1804.2,20.0424432]
[1746408678158,5.54099107,1804.8,1804.2,20.04259571]
[1746408678458,0.55409911,1804.8,1804.3,5.54205917]
[1746408678665,5.54030357,1805.0,1804.4,5.54181586]
[1746408678870,0.8256,1805.2,1804.2,15.05]
[1746408678871,0.8256,1805.2,1804.2,14.5]
[1746408679068,5.54137815,1804.7,1804.2,14.5]
[1746408679362,5.54020648,1805.0,1804.2,14.5]
[1746408679567,11.08270895,1804.7,1804.2,14.5]
[1746408679861,11.85839598,1804.5,1804.2,20.65]
[1746408680019,11.85839598,1804.5,1804.3,3.55]
[1746408680224,11.85839598,1804.5,1804.2,20.6492]
[1746408680761,5.54231557,1804.3,1804.2,20.6492]
[1746408680925,5.54231557,1804.3,1804.2,14.4992]
[1746408681120,5.54217256,1804.4,1804.2,14.4992]
[1746408681962,2.78094644,1804.4,1804.0,5.54306262]
[1746408682155,2.78094644,1804.4,1804.0,5.54301355]
[1746408682370,2.78094644,1804.4,1803.9,10.9947]
[1746408682525,2.78094644,1804.4,1804.0,5.54307412]
[1746408682724,2.78094644,1804.4,1804.1,14.5]
[1746408683050,2.78094644,1804.3,1803.9,10.9947]
[1746408683246,2.78094644,1804.3,1803.9,0.7937]
[1746408683445,5.54411599,1803.8,1803.4,0.7838]
[1746408683774,5.54371873,1803.9,1803.4,6.32873645]
[1746408683922,5.54371873,1803.9,1803.5,14.5]
[1746408684125,5.54385186,1803.8,1803.0,18.352]
[1746408684371,6.84144089,1803.7,1802.6,5.54739706]
[1746408684525,5.54617745,1803.1,1802.6,5.54753675]
[1746408684724,0.80129534,1803.0,1802.6,5.54753675]
[1746408684961,0.80129534,1803.0,1802.6,5.54728874]
[1746408685259,0.80129534,1803.0,1802.7,5.54720928]
[1746408685445,0.80129534,1802.9,1802.8,5.546895]
[1746408685625,0.80129534,1802.9,1802.8,6.65629787]
[1746408685827,1.10869701,1803.9,1803.0,3.7791]
[1746408686024,29.10168256,1804.3,1803.5,5.54477405]
[1746408686025,11.85839598,1803.6,1803.5,5.54477405]
[1746408686346,13.9510541,1804.3,1804.1,5.54278319]
[1746408686523,13.9510541,1804.3,1804.0,5.54296681]
[1746408686723,13.9510541,1804.3,1804.1,14.5]
[1746408687362,5.54262276,1804.2,1804.1,14.5]
[1746408687525,6.65111819,1804.2,1803.7,3.0]
[1746408687856,1.10849543,1804.2,1803.7,5.54396088]
[1746408688060,5.54275203,1804.2,1803.6,11.69424974]
[1746408688258,5.54275203,1804.2,1803.6,11.69421744]
[1746408688437,5.5417013,1804.5,1803.7,14.5]
[1746408688755,5.54380085,1803.9,1803.7,14.5]
[1746408688957,5.54336568,1804.0,1803.7,14.5]
[1746408689165,6.53754438,1804.2,1803.5,0.8238]
[1746408689364,13.40161207,1804.2,1803.7,5.5440412]
[1746408689659,6.53754438,1804.2,1803.7,0.55]
[1746408689964,6.53754438,1804.2,1803.8,5.54372591]
[1746408690154,16.37652947,1803.9,1803.8,20.59372591]
[1746408690339,16.37652947,1803.9,1803.8,18.05]
[1746408690654,16.37652947,1803.9,1803.8,23.59385186]
[1746408691620,6.53754438,1803.9,1803.8,23.59385186]
[1746408691846,6.53754438,1803.9,1803.8,9.09385186]
[1746408692253,6.53754438,1803.9,1803.8,6.15]
[1746408692762,6.53754438,1803.9,1803.8,3.52072668]
[1746408693165,6.53754438,1803.9,1803.8,4.07072668]
[1746408693469,6.53754438,1803.9,1803.8,9.61457854]
[1746408693832,6.53754438,1803.9,1803.8,9.06457854]
[1746408694032,6.53754438,1803.9,1803.8,9.61457854]
[1746408694279,6.53754438,1803.9,1803.8,6.09385186]
[1746408694569,7.75545944,1803.9,1803.2,18.351]
[1746408694767,13.29900821,1803.9,1802.9,15.19936801]
[1746408694934,5.54500668,1803.5,1802.8,2.78853293]
[1746408695143,5.54477405,1803.5,1802.6,2.796363]
[1746408695368,5.54508151,1803.4,1802.4,3.246505]
[1746408695690,12.08129182,1803.9,1802.8,5.54683873]
[1746408695839,5.54529192,1803.4,1802.8,5.54683873]
[1746408696183,5.54496712,1803.5,1802.8,5.54666825]
[1746408696485,1.18936789,1803.5,1802.2,12.899505]
[1746408696800,6.69940738,1802.7,1802.6,5.54754243]
[1746408696940,6.69940738,1802.7,1802.6,20.04754243]
[1746408697134,6.69940738,1802.7,1802.6,23.04754243]
[1746408697329,6.69940738,1802.7,1802.6,23.59754243]
[1746408697777,9.83898509,1802.9,1802.6,23.59754243]
[1746408697778,6.69940738,1802.8,1802.7,5.5472347]
[1746408697980,13.90038914,1802.8,1801.8,2.79555307]
[1746408698141,13.90035253,1802.8,1802.2,5.54854957]
[1746408698342,13.90035253,1802.8,1802.1,5.54894541]
[1746408698647,5.54801864,1802.5,1801.9,3.27689729]
[1746408698849,0.55480186,1802.5,1801.9,8.26935412]
[1746408699079,0.8289,1802.7,1802.0,5.54938956]
[1746408699366,0.8289,1802.7,1801.9,3.00721963]
[1746408699367,18.78392124,1802.8,1802.3,5.54830646]
[1746408699677,13.23695176,1802.8,1802.3,5.54832635]
[1746408699837,13.23695176,1802.8,1802.4,5.54798484]
[1746408700032,13.23695176,1802.8,1802.3,5.54819017]
[1746408700275,22.28716798,1802.6,1802.4,5.54800916]
[1746408700604,22.28716798,1802.6,1802.5,5.5478502]
[1746408700733,22.28716798,1802.6,1802.4,5.54814133]
[1746408700932,22.28716798,1802.6,1802.3,3.0]
[1746408701140,22.28716798,1802.6,1802.4,5.54800826]
[1746408701340,22.28169427,1802.6,1802.4,5.54800826]
[1746408701539,22.28169427,1802.6,1802.3,5.54833859]
[1746408701734,22.28169427,1802.6,1802.2,13.79007242]
[1746408702041,22.28169427,1802.6,1802.5,5.5478502]
[1746408702463,22.28169427,1802.6,1802.4,5.54785411]
[1746408702660,6.53754438,1802.5,1802.3,5.548429]
[1746408702865,6.53754438,1802.5,1802.2,6.62092226]
[1746408703062,6.53754438,1802.5,1802.2,6.06372226]
[1746408703267,8.39963663,1802.5,1801.9,5.55682088]
[1746408703466,12.0855566,1802.5,1802.0,5.54922967]
[1746408703777,12.0855566,1802.5,1802.0,5.54936445]
[1746408703966,6.53754438,1802.5,1802.1,5.54889104]
[1746408704166,6.53754438,1802.5,1802.0,2.70999629]
[1746408704363,17.79051543,1802.4,1802.0,2.70999629]
[1746408704536,23.33884229,1802.4,1802.0,2.70999629]
[1746408704769,5.54877372,1802.2,1801.2,2.73187825]
[1746408704972,5.55018269,1801.8,1801.2,5.55167026]
[1746408705346,5.54932349,1802.1,1801.5,5.55080716]
[1746408705545,9.658,1802.2,1801.1,27.82288328]
[1746408705775,5.54912347,1802.1,1801.6,5.55044673]
[1746408705950,15.20699837,1802.2,1801.6,5.55044673]
[1746408706145,5.54982429,1801.9,1801.3,5.5515461]
[1746408706359,5.54993741,1801.9,1801.3,5.5515461]
[1746408706565,5.54933257,1802.1,1801.4,0.10462245]
[1746408706777,5.54989956,1801.9,1801.3,5.55129628]
[1746408706990,5.55062166,1801.6,1801.5,0.11703842]
[1746408707193,5.55057683,1801.7,1801.1,9.658]
[1746408707394,5.55057683,1801.7,1800.7,8.34802333]
[1746408707395,5.55332782,1800.8,1800.1,2.72600705]
[1746408707555,0.8185,1800.9,1800.1,2.72600705]
[1746408707556,0.55533278,1800.7,1800.1,2.72600705]
[1746408707879,9.599,1801.0,1800.1,2.72600705]
[1746408708080,0.8185,1800.2,1800.0,2.73834873]
[1746408708399,0.8185,1800.2,1799.5,9.66253444]
[1746408708400,5.55679039,1799.6,1799.5,9.66253444]
[1746408708600,5.5595708,1798.7,1798.6,4.77075955]
[1746408708893,5.5595708,1798.7,1798.4,9.66386206]
[1746408708894,5.5597457,1798.7,1798.4,0.26486206]
[1746408709054,18.361,1799.5,1798.4,0.26486206]
[1746408710001,5.55977532,1798.7,1798.4,0.26486206]
[1746408710156,9.691,1799.0,1798.4,0.26486206]
[1746408710355,8.33107782,1798.9,1796.5,2.78672706]
[1746408710558,5.56173526,1798.0,1796.5,2.78672706]
[1746408710803,0.55617353,1797.9,1796.5,2.78672706]
[1746408711090,5.56235398,1797.8,1796.3,8.31791915]
[1746408711292,5.5140192,1797.3,1796.3,2.75113587]
[1746408711478,0.55617353,1797.9,1796.3,2.75113587]
[1746408711680,0.55617353,1797.9,1796.3,8.31807577]
[1746408711901,0.8119,1797.7,1796.2,5.71449597]
[1746408712103,5.56359945,1797.4,1796.5,2.78672706]
[1746408712276,0.8119,1797.7,1796.6,14.5]
[1746408712477,5.56480179,1797.1,1796.2,5.71449597]
[1746408712707,5.56452068,1797.1,1796.3,8.31809786]
[1746408712907,0.7817,1796.9,1796.3,2.75113587]
[1746408713121,0.55617353,1797.9,1796.2,5.71449597]
[1746408713122,0.7817,1797.4,1796.7,2.77508815]
[1746408713278,0.7817,1797.4,1796.5,2.78672706]
[1746408713479,0.7817,1797.4,1796.7,2.77508815]
[1746408713705,0.7817,1797.4,1797.0,2.78181099]
[1746408713907,0.7767,1797.4,1797.0,2.78181099]
[1746408714122,5.56227033,1797.9,1797.2,2.77429159]
[1746408714281,5.56227033,1797.9,1796.2,11.2816156]
[1746408714282,3.55064893,1796.8,1796.2,11.2816156]
[1746408714477,3.55064893,1796.8,1796.3,5.56699883]
[1746408714678,3.55064893,1796.8,1796.2,3.1163883]
[1746408715011,3.55064893,1796.8,1796.2,0.06071967]
[1746408715186,3.55064893,1796.8,1796.7,3.0]
[1746408715390,3.55064893,1797.4,1796.9,3.0]
[1746408715592,3.55064893,1797.4,1796.8,8.56544968]
[1746408715796,3.55064893,1797.4,1796.7,3.85658917]
[1746408716000,3.55064893,1797.4,1796.9,5.56512753]
[1746408716184,3.55064893,1797.4,1796.2,3.36717097]
[1746408716381,3.55064893,1797.4,1796.2,2.84440015]
[1746408716585,5.39371276,1796.3,1796.2,2.84440015]
[1746408716823,5.39371276,1796.3,1796.2,0.06071967]
[1746408717026,4.97629986,1796.3,1796.2,0.06071967]
[1746408717380,0.7807,1796.4,1796.2,0.06071967]
[1746408717585,6.34748026,1796.4,1796.2,0.06071967]
[1746408717800,5.56699883,1796.3,1796.2,0.06071967]
[1746408718023,5.56699883,1796.3,1796.0,1e-08]
[1746408718335,5.57196188,1794.7,1794.1,0.6511726]
[1746408718544,5.57196188,1794.7,1793.0,10.18595041]
[1746408718545,19.63468471,1794.6,1792.0,0.00559]
[1746408718830,5.57579711,1793.5,1792.0,0.20559]
[1746408719037,5.35462257,1792.6,1792.3,0.2]
[1746408719186,5.58000779,1792.2,1792.0,0.00559]
[1746408719388,5.57755591,1792.9,1792.0,2.74759414]
[1746408719604,0.09398527,1792.8,1792.0,2.74759414]
[1746408719806,5.58112111,1791.8,1791.6,0.5349798]
[1746408720026,3.34874282,1794.6,1792.0,1.93004039]
[1746408720323,10.38302059,1793.1,1792.1,2.72183925]
[1746408720510,3.23751602,1793.4,1792.1,2.72183925]
[1746408720710,5.57631182,1793.3,1792.1,2.72183925]
[1746408720936,5.5797344,1792.2,1792.1,2.72183925]
[1746408721134,4.80582567,1793.0,1791.7,2.79851662]
[1746408721341,1.8397,1793.4,1791.7,2.79851662]
[1746408721540,0.7648,1793.1,1791.7,2.79851662]
[1746408721746,0.7648,1793.1,1791.6,0.5349798]
[1746408721747,0.7648,1793.1,1791.9,2.70752494]
[1746408722034,0.7648,1793.1,1792.0,3.0]
[1746408722216,0.7648,1793.1,1792.1,3.02063564]
[1746408722428,16.0,1793.6,1792.5,5.57878478]
[1746408722624,0.7648,1793.5,1792.2,2.98805997]
[1746408722943,0.7632,1793.1,1791.6,10.5349798]
[1746408723147,5.58004575,1792.1,1792.0,0.8476615]
[1746408723439,1.11597837,1792.1,1791.1,0.019]
[1746408723638,5.57982092,1792.2,1791.2,2.70517071]
[1746408723924,5.58253782,1791.3,1791.2,2.70517071]
[1746408724130,6.40428358,1791.3,1791.1,0.019]
[1746408724344,0.8215,1791.3,1790.2,10.0]
[1746408724498,0.8215,1791.3,1790.3,0.15407716]
[1746408724499,4.77866043,1790.6,1790.3,0.15407716]
[1746408724693,0.8215,1791.3,1790.3,0.15407716]
[1746408724997,19.04189926,1791.9,1790.4,2.73478717]
[1746408725195,4.8342949,1791.1,1789.8,13.21135457]
[1746408725426,0.2,1791.2,1789.8,10.4476584]
[1746408725589,3.0,1790.8,1789.9,0.12853477]
[1746408725796,16.0,1790.9,1789.9,0.12853477]
[1746408726206,0.09370057,1790.8,1790.7,5.58440833]
[1746408726452,0.2,1792.8,1790.7,5.58440833]
[1746408726453,4.8342949,1792.7,1790.9,3.0]
[1746408726801,16.0,1792.9,1791.3,5.58235409]
[1746408727001,16.0,1792.9,1791.0,0.14172074]
[1746408727002,16.0,1792.9,1791.5,3.0]
[1746408727300,0.27711771,1794.3,1792.4,5.57910816]
[1746408727497,4.8342949,1794.0,1792.5,0.12990529]
[1746408727889,0.8323,1794.1,1792.5,0.12990529]
[1746408728126,0.8323,1794.1,1792.0,4.8342949]
[1746408728338,0.8323,1794.1,1792.5,3.0]
[1746408728539,3.55064893,1794.2,1793.3,3.0]
[1746408728700,3.55064893,1794.2,1793.9,5.57431493]
[1746408728901,3.55064893,1794.2,1793.7,3.0]
[1746408729132,4.61584362,1794.7,1793.7,3.0]
[1746408729330,4.61584362,1794.7,1794.6,8.57227237]
[1746408729708,0.00532,1795.5,1794.7,3.0]
[1746408729903,0.00532,1795.5,1795.1,5.57067552]
[1746408730096,0.00532,1795.5,1795.3,5.56990702]
[1746408730301,0.00532,1795.5,1795.4,8.56978946]
[1746408730524,0.00532,1795.5,1795.4,10.24698046]
[1746408730747,0.00532,1795.5,1795.4,1.677191]
[1746408730949,0.00532,1795.5,1794.9,3.0]
[1746408731153,0.00532,1795.5,1795.4,7.24697146]
[1746408731353,0.00532,1795.5,1795.4,10.24697146]
[1746408731531,0.00532,1795.5,1795.4,4.677182]
[1746408732031,0.00532,1795.5,1795.4,10.24697146]
[1746408732456,0.00532,1795.5,1795.4,4.677182]
[1746408732653,0.00532,1795.5,1794.9,3.0]
[1746408732959,0.00532,1795.5,1795.0,10.24842174]
[1746408733161,0.00532,1795.5,1795.4,5.56978946]
[1746408733362,0.00532,1795.5,1795.4,8.56978946]
[1746408734130,0.00532,1795.5,1795.4,8.62548218]
[1746408734352,0.00532,1795.5,1795.4,3.05569272]
[1746408734563,0.00532,1795.5,1795.4,10.73340204]
[1746408734725,0.7601,1797.0,1796.2,5.56707629]
[1746408734931,5.56304912,1797.6,1795.5,8.56946196]
[1746408734932,0.753,1797.8,1795.5,0.47074493]
[1746408735166,5.5642302,1797.2,1796.3,5.56678285]
[1746408735369,0.55642302,1797.1,1795.9,14.5]
[1746408735555,5.56339159,1797.5,1796.0,5.56768606]
[1746408735875,0.753,1797.8,1796.0,1.676441]
[1746408736171,6.3154642,1797.8,1796.9,5.56512997]
[1746408736465,0.63154642,1797.7,1797.0,5.56473511]
[1746408736635,6.31548223,1797.8,1797.1,0.55]
[1746408736835,6.31550233,1797.8,1796.9,6.11496428]
[1746408737035,18.446,1798.1,1797.1,0.55]
[1746408737261,18.446,1798.1,1796.8,3.0]
[1746408737561,5.56194718,1798.0,1797.2,0.55]
[1746408737759,1.8446,1798.0,1796.9,0.47074493]
[1746408737927,5.56273039,1797.7,1797.0,0.55]
[1746408738130,5.5626634,1797.7,1796.0,0.8051]
[1746408738334,5.56691135,1796.4,1795.8,0.47074493]
[1746408738571,5.56687655,1796.4,1795.6,5.56912899]
[1746408738774,0.55668765,1796.3,1795.6,5.56912899]
[1746408738973,18.44,1797.0,1795.9,5.56823504]
[1746408739146,18.44,1797.0,1795.7,0.47074493]
[1746408739548,5.56530622,1796.9,1796.0,5.56776612]
[1746408739759,18.44,1797.0,1796.1,0.55]
[1746408739970,2.04996278,1796.9,1796.4,0.55]
[1746408740173,2.04996278,1796.9,1796.5,0.55]
[1746408740474,1.32297304,1797.6,1796.0,0.1013117]
[1746408740770,5.56493464,1797.0,1796.1,5.56760507]
[1746408741073,1.32297304,1797.6,1796.6,5.56595197]
[1746408741074,5.56349789,1797.5,1796.6,5.56595197]
[1746408741275,5.56328233,1797.5,1796.2,5.56713253]
[1746408741480,1.32297304,1797.6,1795.7,0.43995882]